No of Trans,Dept Familiy,Entity Name,Cert Date,Supplier Name,Reference,Gross Amt,Group/Department,Type of Expenditure - Subjective Codes
1,DCMS,EH,19/01/2015,"All Saints PCC, Little Staughton",0082003526,"27,622.00 ",Heritage Protection & Planning-Nat. Planning & Conservation,GRANTS PAYABLE PLACES OF WORSHIP
2,DCMS,EH,19/01/2015,Antenna Audio,0040084294,"29,550.00 ",National Collections-Historic Properties Department,Cost of Audio Tape
3,DCMS,EH,19/01/2015,Antenna Audio,0040089039,"(28,695.00)",National Collections-Historic Properties Department,Cost of Audio Tape
4,DCMS,EH,26/01/2015,Assemblies of the First Born,0082003545,"36,400.00 ",Heritage Protection & Planning-Nat. Planning & Conservation,GRANTS PAYABLE PLACES OF WORSHIP
5,DCMS,EH,21/01/2015,Bilfinger Europa Fac Management Ltd,0040088584,"6,236.70 ",Resources-Human Resources,Office Security & Cash Collect
6,DCMS,EH,21/01/2015,Bilfinger Europa Fac Management Ltd,0040088584,"10,628.48 ",Resources-Human Resources,Office Cleaning
7,DCMS,EH,21/01/2015,Bilfinger Europa Fac Management Ltd,0040088584,"9,765.28 ",Resources-Human Resources,Annual Cyclical Work M & E
8,DCMS,EH,21/01/2015,Bilfinger Europa Fac Management Ltd,0040088584,192.94 ,Resources-Human Resources,Annual Cyclical Works-Building
9,DCMS,EH,21/01/2015,Bilfinger Europa Fac Management Ltd,0040088584,"5,763.00 ",Resources-Human Resources,Annual Cyclical Works-Building
10,DCMS,EH,07/01/2015,Birmingham City Council,0081003142,"25,053.28 ",Heritage Protection & Planning-Heritage Protection,ENABLING PROGRAMMES ENABLING PROGRAMMES
11,DCMS,EH,14/01/2015,British Gas ,0020067258,47.90 ,National Collections-Historic Properties Department,Electricity
12,DCMS,EH,14/01/2015,British Gas ,0020067258,34.30 ,National Collections-Historic Properties Department,Electricity
13,DCMS,EH,14/01/2015,British Gas ,0020067258,90.74 ,National Collections-Historic Properties Department,Electricity
14,DCMS,EH,14/01/2015,British Gas ,0020067258,99.46 ,National Collections-Historic Properties Department,Electricity
15,DCMS,EH,14/01/2015,British Gas ,0020067258,61.57 ,National Collections-Historic Properties Department,Electricity
16,DCMS,EH,14/01/2015,British Gas ,0020067258,37.50 ,National Collections-Historic Properties Department,Electricity
17,DCMS,EH,14/01/2015,British Gas ,0020067258,44.33 ,National Collections-Historic Properties Department,Electricity
18,DCMS,EH,14/01/2015,British Gas ,0020067258,"14,790.54 ",National Collections-Historic Properties Department,Electricity
19,DCMS,EH,14/01/2015,British Gas ,0020067258,120.02 ,National Collections-Historic Properties Department,Electricity
20,DCMS,EH,14/01/2015,British Gas ,0020067258,48.03 ,National Collections-Historic Properties Department,Electricity
21,DCMS,EH,14/01/2015,British Gas ,0020067258,47.47 ,National Collections-Historic Properties Department,Electricity
22,DCMS,EH,14/01/2015,British Gas ,0020067258,482.90 ,National Collections-Historic Properties Department,Electricity
23,DCMS,EH,14/01/2015,British Gas ,0020067258,59.73 ,National Collections-Historic Properties Department,Electricity
24,DCMS,EH,14/01/2015,British Gas ,0020067258,12.96 ,National Collections-Historic Properties Department,Electricity
25,DCMS,EH,14/01/2015,British Gas ,0020067258,281.43 ,National Collections-Historic Properties Department,Electricity
26,DCMS,EH,14/01/2015,British Gas ,0020067258,139.57 ,National Collections-Historic Properties Department,Electricity
27,DCMS,EH,14/01/2015,British Gas ,0020067258,76.72 ,National Collections-Historic Properties Department,Electricity
28,DCMS,EH,14/01/2015,British Gas ,0020067258,35.77 ,National Collections-Historic Properties Department,Electricity
29,DCMS,EH,14/01/2015,British Gas ,0020067258,113.98 ,National Collections-Historic Properties Department,Electricity
30,DCMS,EH,14/01/2015,British Gas ,0020067258,37.00 ,National Collections-Historic Properties Department,Electricity
31,DCMS,EH,14/01/2015,British Gas ,0020067258,450.58 ,National Collections-Historic Properties Department,Electricity
32,DCMS,EH,14/01/2015,British Gas ,0020067258,"3,610.89 ",National Collections-Historic Properties Department,Electricity
33,DCMS,EH,14/01/2015,British Gas ,0020067258,18.92 ,National Collections-Historic Properties Department,Electricity
34,DCMS,EH,14/01/2015,British Gas ,0020067258,104.84 ,National Collections-Historic Properties Department,Electricity
35,DCMS,EH,14/01/2015,British Gas ,0020067258,27.85 ,National Collections-Historic Properties Department,Electricity
36,DCMS,EH,14/01/2015,British Gas ,0020067258,33.33 ,National Collections-Historic Properties Department,Electricity
37,DCMS,EH,14/01/2015,British Gas ,0020067258,75.67 ,National Collections-Historic Properties Department,Electricity
38,DCMS,EH,14/01/2015,British Gas ,0020067258,153.08 ,National Collections-Historic Properties Department,Electricity
39,DCMS,EH,14/01/2015,British Gas ,0020067258,518.56 ,National Collections-Historic Properties Department,Electricity
40,DCMS,EH,14/01/2015,British Gas ,0020067258,549.26 ,National Collections-Historic Properties Department,Electricity
41,DCMS,EH,14/01/2015,British Gas ,0020067258,133.91 ,National Collections-Historic Properties Department,Electricity
42,DCMS,EH,14/01/2015,British Gas ,0020067258,589.06 ,National Collections-Historic Properties Department,Electricity
43,DCMS,EH,14/01/2015,British Gas ,0020067258,60.76 ,National Collections-Historic Properties Department,Electricity
44,DCMS,EH,14/01/2015,British Gas ,0020067258,161.60 ,National Collections-Historic Properties Department,Electricity
45,DCMS,EH,14/01/2015,British Gas ,0020067258,11.07 ,National Collections-Historic Properties Department,Electricity
46,DCMS,EH,14/01/2015,British Gas ,0020067258,35.83 ,National Collections-Historic Properties Department,Electricity
47,DCMS,EH,14/01/2015,British Gas ,0020067258,56.17 ,National Collections-Historic Properties Department,Electricity
48,DCMS,EH,14/01/2015,British Gas ,0020067258,427.12 ,National Collections-Historic Properties Department,Electricity
49,DCMS,EH,14/01/2015,British Gas ,0020067258,612.57 ,National Collections-Historic Properties Department,Electricity
50,DCMS,EH,14/01/2015,British Gas ,0020067258,11.60 ,National Collections-Historic Properties Department,Electricity
51,DCMS,EH,14/01/2015,British Gas ,0020067258,102.66 ,National Collections-Historic Properties Department,Electricity
52,DCMS,EH,14/01/2015,British Gas ,0020067258,100.87 ,National Collections-Historic Properties Department,Electricity
53,DCMS,EH,14/01/2015,British Gas ,0020067258,15.42 ,National Collections-Historic Properties Department,Electricity
54,DCMS,EH,14/01/2015,British Gas ,0020067258,195.68 ,National Collections-Historic Properties Department,Electricity
55,DCMS,EH,14/01/2015,British Gas ,0020067258,11.38 ,National Collections-Historic Properties Department,Electricity
56,DCMS,EH,14/01/2015,British Gas ,0020067258,12.42 ,National Collections-Historic Properties Department,Electricity
57,DCMS,EH,14/01/2015,British Gas ,0020067258,12.42 ,National Collections-Historic Properties Department,Electricity
58,DCMS,EH,14/01/2015,British Gas ,0020067258,18.11 ,National Collections-Historic Properties Department,Electricity
59,DCMS,EH,14/01/2015,British Gas ,0020067258,32.22 ,National Collections-Historic Properties Department,Electricity
60,DCMS,EH,14/01/2015,British Gas ,0020067258,151.57 ,National Collections-Historic Properties Department,Electricity
61,DCMS,EH,14/01/2015,British Gas ,0020067258,377.60 ,National Collections-Historic Properties Department,Electricity
62,DCMS,EH,14/01/2015,British Gas ,0020067258,75.70 ,National Collections-Historic Properties Department,Electricity
63,DCMS,EH,14/01/2015,British Gas ,0020067258,"(20,021.67)",National Collections-Historic Properties Department,Electricity
64,DCMS,EH,14/01/2015,British Gas ,0020067258,(89.88),National Collections-Historic Properties Department,Electricity
65,DCMS,EH,14/01/2015,British Gas ,0020067258,45.71 ,National Collections-Historic Properties Department,Electricity
66,DCMS,EH,14/01/2015,British Gas ,0020067258,493.62 ,National Collections-Historic Properties Department,Electricity
67,DCMS,EH,14/01/2015,British Gas ,0020067258,19.79 ,National Collections-Historic Properties Department,Electricity
68,DCMS,EH,14/01/2015,British Gas ,0020067258,286.88 ,National Collections-Historic Properties Department,Electricity
69,DCMS,EH,14/01/2015,British Gas ,0020067258,151.18 ,National Collections-Historic Properties Department,Electricity
70,DCMS,EH,14/01/2015,British Gas ,0020067258,"2,151.50 ",National Collections-Historic Properties Department,Electricity
71,DCMS,EH,14/01/2015,British Gas ,0020067258,28.02 ,National Collections-Historic Properties Department,Electricity
72,DCMS,EH,14/01/2015,British Gas ,0020067258,122.59 ,National Collections-Historic Properties Department,Electricity
73,DCMS,EH,14/01/2015,British Gas ,0020067258,283.84 ,National Collections-Historic Properties Department,Electricity
74,DCMS,EH,14/01/2015,British Gas ,0020067258,12.31 ,National Collections-Historic Properties Department,Electricity
75,DCMS,EH,14/01/2015,British Gas ,0020067258,25.64 ,National Collections-Historic Properties Department,Electricity
76,DCMS,EH,14/01/2015,British Gas ,0020067258,88.68 ,National Collections-Historic Properties Department,Electricity
77,DCMS,EH,14/01/2015,British Gas ,0020067258,104.04 ,National Collections-Historic Properties Department,Electricity
78,DCMS,EH,14/01/2015,British Gas ,0020067258,48.23 ,National Collections-Historic Properties Department,Electricity
79,DCMS,EH,14/01/2015,British Gas ,0020067258,64.38 ,National Collections-Historic Properties Department,Electricity
80,DCMS,EH,14/01/2015,British Gas ,0020067258,"13,584.57 ",National Collections-Historic Properties Department,Electricity
81,DCMS,EH,14/01/2015,British Gas ,0020067258,77.19 ,National Collections-Historic Properties Department,Electricity
82,DCMS,EH,14/01/2015,British Gas ,0020067258,32.89 ,National Collections-Historic Properties Department,Electricity
83,DCMS,EH,14/01/2015,British Gas ,0020067258,68.71 ,National Collections-Historic Properties Department,Electricity
84,DCMS,EH,14/01/2015,British Gas ,0020067258,"13,312.17 ",National Collections-Historic Properties Department,Electricity
85,DCMS,EH,14/01/2015,British Gas ,0020067258,228.57 ,National Collections-Historic Properties Department,Electricity
86,DCMS,EH,14/01/2015,British Gas ,0020067258,169.63 ,National Collections-Historic Properties Department,Electricity
87,DCMS,EH,14/01/2015,British Gas ,0020067258,74.85 ,National Collections-Historic Properties Department,Electricity
88,DCMS,EH,14/01/2015,British Gas ,0020067258,38.15 ,National Collections-Historic Properties Department,Electricity
89,DCMS,EH,14/01/2015,British Gas ,0020067258,18.06 ,National Collections-Historic Properties Department,Electricity
90,DCMS,EH,14/01/2015,British Gas ,0020067258,53.15 ,National Collections-Historic Properties Department,Electricity
91,DCMS,EH,30/01/2015,Burton-Le- Coggles PCC,0082003563,"70,200.00 ",Heritage Protection & Planning-Nat. Planning & Conservation,GRANTS PAYABLE PLACES OF WORSHIP
92,DCMS,EH,14/01/2015,Buxton Building Contractors Ltd,0040088398,"164,702.74 ",National Collections-Capital Investment Programme,WIP Operational Building Works
93,DCMS,EH,28/01/2015,Buxton Building Contractors Ltd,0040090356,"261,493.97 ",National Collections-Capital Investment Programme,WIP Operational Building Works
94,DCMS,EH,21/01/2015,Capita Secure Information Solutions Ltd,0040089510,"34,073.98 ",Resources-IMT,ITFM
95,DCMS,EH,28/01/2015,Capita Secure Information Solutions Ltd,0040089831,"119,078.14 ",Resources-IMT,Software Maintenance
96,DCMS,EH,28/01/2015,Capita Secure Information Solutions Ltd,0040090138,"84,181.97 ",Resources-IMT,Computer Equipment <10k
97,DCMS,EH,21/01/2015,Context Engineering Ltd,0040089180,"29,136.00 ",National Collections-Property Maintenance Programme,Planned Maintenance
98,DCMS,EH,30/01/2015,Context Engineering Ltd,0040089764,"8,400.00 ",National Collections-Property Maintenance Programme,Historic Artefacts Maintenance
99,DCMS,EH,30/01/2015,Context Engineering Ltd,0040089764,"11,100.00 ",National Collections-Property Maintenance Programme,Historic Artefacts Maintenance
100,DCMS,EH,30/01/2015,Context Engineering Ltd,0040089764,"10,500.00 ",National Collections-Property Maintenance Programme,Historic Artefacts Maintenance
101,DCMS,EH,27/01/2015,Designmap,0040090401,"27,438.00 ",National Collections-Curatorial Department,Exhibits/Displays
102,DCMS,EH,13/01/2015,DST Global Insight Group Ltd,0040089136,"2,160.00 ",Resources-IMT,Software Maintenance
103,DCMS,EH,13/01/2015,DST Global Insight Group Ltd,0040089136,"20,160.00 ",Resources-IMT,WIP Systems Development
104,DCMS,EH,13/01/2015,DST Global Insight Group Ltd,0040089136,"2,790.00 ",Resources-IMT,WIP Systems Development
105,DCMS,EH,30/01/2015,East Suffolk Mind,0082003555,"40,000.00 ",Heritage Protection & Planning-Nat. Planning & Conservation,GRANTS PAYABLE HISTORIC BUILDINGS
106,DCMS,EH,14/01/2015,Erith Contractors Ltd,0040088728,"141,100.08 ",Heritage Protection & Planning-Nat. Planning & Conservation,Works for Heritage Buildings
107,DCMS,EH,23/01/2015,Fairhurst Ward Abbotts Ltd,0040089745,"39,961.73 ",National Collections-Property Maintenance Programme,Leased Accomodation Maint
108,DCMS,EH,28/01/2015,Fairhurst Ward Abbotts Ltd,0040090368,"73,980.60 ",National Collections-Major Conservation Projects,Planned Maintenance
109,DCMS,EH,15/01/2015,G.J. Banks (I.W.) Ltd,0040088614,"20,299.26 ",National Collections-Capital Investment Programme,Fees for Professional Advice
110,DCMS,EH,15/01/2015,G.J. Banks (I.W.) Ltd,0040088614,"5,363.94 ",National Collections-Capital Investment Programme,WIP Professional Works Advice
111,DCMS,EH,23/01/2015,Gillards Worldwide,0040089918,"30,149.17 ",National Collections-Historic Properties Department,Marketing Distribution
112,DCMS,EH,05/01/2015,Hampstead with Eccles & Lessingham PCC,0082003502,"33,500.00 ",Heritage Protection & Planning-Nat. Planning & Conservation,GRANTS PAYABLE PLACES OF WORSHIP
113,DCMS,EH,28/01/2015,Hare and Humphreys Ltd,0040089721,"27,003.00 ",National Collections-Capital Investment Programme,Planned Maintenance
114,DCMS,EH,23/01/2015,Historic Property Restoration Ltd,0040089637,"16,071.02 ",National Collections-Property Maintenance Programme,Annual Cyclical Work M & E
115,DCMS,EH,23/01/2015,Historic Property Restoration Ltd,0040089637,784.68 ,National Collections-Property Maintenance Programme,Annual Cyclical Work M & E
116,DCMS,EH,23/01/2015,Historic Property Restoration Ltd,0040089637,"2,145.67 ",National Collections-Property Maintenance Programme,Leased Accomodation Maint
117,DCMS,EH,23/01/2015,Historic Property Restoration Ltd,0040089637,"2,555.10 ",National Collections-Property Maintenance Programme,Annual Cyclical Works-Building
118,DCMS,EH,23/01/2015,Historic Property Restoration Ltd,0040089637,"26,124.64 ",National Collections-Property Maintenance Programme,Annual Cyclical Works-Building
119,DCMS,EH,14/01/2015,ICCROM,0020067256,"77,676.82 ",Heritage Protection & Planning-Nat. Planning & Conservation,Corporate Subscriptions
120,DCMS,EH,14/01/2015,Illustrated London News Ltd,0040088405,"5,468.40 ",National Collections-Marketing,Digital
121,DCMS,EH,14/01/2015,Illustrated London News Ltd,0040088405,"42,548.40 ",National Collections-Marketing,Marketing Creative
122,DCMS,EH,14/01/2015,Illustrated London News Ltd,0040088405,"16,750.80 ",National Collections-Marketing,Marketing Creative
123,DCMS,EH,14/01/2015,Illustrated London News Ltd,0040088405,"2,913.60 ",National Collections-Marketing,Marketing Creative
124,DCMS,EH,14/01/2015,Illustrated London News Ltd,0040088406,"17,935.20 ",National Collections-Marketing,Print and Production
125,DCMS,EH,14/01/2015,Illustrated London News Ltd,0040088406,"52,897.20 ",National Collections-Marketing,Print and Production
126,DCMS,EH,28/01/2015,K3 Retail & Business Solutions,0040088910,"3,658.20 ",Resources-IMT,WIP Systems Development
127,DCMS,EH,28/01/2015,K3 Retail & Business Solutions,0040088910,"6,728.80 ",Resources-IMT,Travel
128,DCMS,EH,28/01/2015,K3 Retail & Business Solutions,0040088910,"61,800.96 ",Resources-IMT,Computer Consultancy
129,DCMS,EH,21/01/2015,K3 Retail Solutions Ltd,0040088897,"27,605.10 ",Resources-IMT,Software Maintenance
130,DCMS,EH,15/01/2015,Leach Colour,0040084694,"21,145.20 ",National Collections-Capital Investment Programme,Fees for Professional Advice
131,DCMS,EH,15/01/2015,Leach Colour,0040084694,"7,890.00 ",National Collections-Capital Investment Programme,Fees for Professional Advice
132,DCMS,EH,15/01/2015,Leach Colour,0040084694,"2,524.80 ",National Collections-Capital Investment Programme,Fees for Professional Advice
133,DCMS,EH,30/01/2015,Leigh BPT Ltd,0082003571,"72,960.00 ",Heritage Protection & Planning-Nat. Planning & Conservation,GRANTS PAYABLE HISTORIC BUILDINGS
134,DCMS,EH,14/01/2015,LINHOF STUDIO,0020067330,"28,740.00 ",Heritage Protection & Planning-Heritage Protection,Plant & Equipment > 10k
135,DCMS,EH,07/01/2015,Liversedge PCC,0082003510,"36,000.00 ",Heritage Protection & Planning-Nat. Planning & Conservation,GRANTS PAYABLE PLACES OF WORSHIP
136,DCMS,EH,07/01/2015,Liversedge PCC,0082003511,"42,270.00 ",Heritage Protection & Planning-Nat. Planning & Conservation,GRANTS PAYABLE PLACES OF WORSHIP
137,DCMS,EH,29/01/2015,Lyme Bay Cider Company Ltd,0077000485,"18,752.83 ",National Collections-Historic Properties Department,Stock Goods and Souvenirs
138,DCMS,EH,29/01/2015,Lyme Bay Cider Company Ltd,0077000485,"11,251.71 ",National Collections-Historic Properties Department,Stock Goods and Souvenirs
139,DCMS,EH,29/01/2015,Lyme Bay Cider Company Ltd,0077000485,(0.01),Resources-Corporate,Bad Debts
140,DCMS,EH,30/01/2015,Manchester City Council,0082003558,"180,000.00 ",Heritage Protection & Planning-Nat. Planning & Conservation,GRANTS PAYABLE HISTORIC BUILDINGS
141,DCMS,EH,30/01/2015,Meyvaert UK Ltd,0040090673,"50,987.52 ",National Collections-Capital Investment Programme,Exhibits/Displays
142,DCMS,EH,21/01/2015,North York Moors National Park,0090514075,"47,401.00 ",Heritage Protection & Planning-Nat. Planning & Conservation,GRANTS PAYABLE OTHER GRANTS
143,DCMS,EH,14/01/2015,Owlsworth IJP LTD,0040088327,"59,701.38 ",Heritage Protection & Planning-Nat. Planning & Conservation,Works for Heritage Buildings
144,DCMS,EH,07/01/2015,Oxford Archaeological Unit Ltd,0040087587,"28,307.02 ",Heritage Protection & Planning-Heritage Protection,Hist Environ Prog Projects Gra
145,DCMS,EH,15/01/2015,Pearce Const Barnstaple Ltd,0040089194,"19,728.66 ",National Collections-Property Maintenance Programme,Planned Maintenance
146,DCMS,EH,15/01/2015,Pearce Const Barnstaple Ltd,0040089194,"11,072.93 ",National Collections-Capital Investment Programme,WIP Operational Building Works
147,DCMS,EH,14/01/2015,RDSi,0040087039,"55,116.00 ",National Collections-Marketing,Market Research
148,DCMS,EH,30/01/2015,Save Britain's Heritage,0082003570,"62,757.00 ",Heritage Protection & Planning-Nat. Planning & Conservation,GRANTS PAYABLE HISTORIC BUILDINGS
149,DCMS,EH,19/01/2015,Scarning PCC,0082003524,"40,000.00 ",Heritage Protection & Planning-Nat. Planning & Conservation,GRANTS PAYABLE PLACES OF WORSHIP
150,DCMS,EH,29/01/2015,Skanska Rashleigh Weatherfoil Ltd,0040090492,"30,754.80 ",National Advice & Information-Archives,WIP Operational Building Works
151,DCMS,EH,29/01/2015,Skanska Rashleigh Weatherfoil Ltd,0040090492,360.00 ,National Advice & Information-Archives,WIP Operational Building Works
152,DCMS,EH,30/01/2015,St Albans Parochial Church Council,0082003559,"34,081.00 ",Heritage Protection & Planning-Nat. Planning & Conservation,GRANTS PAYABLE PLACES OF WORSHIP
153,DCMS,EH,19/01/2015,St Andrews Halton Holegate PCC,0082003527,"68,500.00 ",Heritage Protection & Planning-Nat. Planning & Conservation,GRANTS PAYABLE PLACES OF WORSHIP
154,DCMS,EH,12/01/2015,St John sub Castro PCC,0082003520,"48,000.00 ",Heritage Protection & Planning-Nat. Planning & Conservation,GRANTS PAYABLE PLACES OF WORSHIP
155,DCMS,EH,05/01/2015,St John the Baptist PCC,0082003503,"27,900.00 ",Heritage Protection & Planning-Nat. Planning & Conservation,GRANTS PAYABLE PLACES OF WORSHIP
156,DCMS,EH,30/01/2015,St Johns Dovecote,0082003561,"27,454.00 ",Heritage Protection & Planning-Nat. Planning & Conservation,GRANTS PAYABLE HISTORIC BUILDINGS
157,DCMS,EH,05/01/2015,"St Marys Church, Ludgershall PCC",0082003508,"68,540.00 ",Heritage Protection & Planning-Nat. Planning & Conservation,GRANTS PAYABLE PLACES OF WORSHIP
158,DCMS,EH,21/01/2015,St Michael and All Angels PCC,0082003535,"41,000.00 ",Heritage Protection & Planning-Nat. Planning & Conservation,GRANTS PAYABLE PLACES OF WORSHIP
159,DCMS,EH,30/01/2015,St Stephens Parochial Church Council,0082003569,"37,000.00 ",Heritage Protection & Planning-Nat. Planning & Conservation,GRANTS PAYABLE PLACES OF WORSHIP
160,DCMS,EH,19/01/2015,Streatham PCC,0082003528,"44,148.00 ",Heritage Protection & Planning-Nat. Planning & Conservation,GRANTS PAYABLE PLACES OF WORSHIP
161,DCMS,EH,21/01/2015,Sykes and Son Limited,0040089608,540.00 ,National Collections-Historic Properties Department,Planned Maintenance
162,DCMS,EH,21/01/2015,Sykes and Son Limited,0040089608,"2,968.80 ",National Collections-Property Maintenance Programme,Planned Maintenance
163,DCMS,EH,21/01/2015,Sykes and Son Limited,0040089608,"4,648.80 ",National Collections-Property Maintenance Programme,Planned Maintenance
164,DCMS,EH,21/01/2015,Sykes and Son Limited,0040089608,"1,104.00 ",National Collections-Historic Properties Department,Planned Maintenance
165,DCMS,EH,21/01/2015,Sykes and Son Limited,0040089608,"2,640.00 ",National Collections-Property Maintenance Programme,Planned Maintenance
166,DCMS,EH,21/01/2015,Sykes and Son Limited,0040089608,"8,542.80 ",National Collections-Property Maintenance Programme,Planned Maintenance
167,DCMS,EH,21/01/2015,Sykes and Son Limited,0040089608,"11,134.80 ",National Collections-Property Maintenance Programme,Planned Maintenance
168,DCMS,EH,07/01/2015,Thanet District Council,0090514066,"46,052.00 ",Heritage Protection & Planning-Nat. Planning & Conservation,GRANTS PAYABLE OTHER GRANTS
169,DCMS,EH,22/01/2015,The National Trust Wiltshire,0040087718,"48,655.86 ",National Collections-Historic Properties Department,Rent - Operating Leases
170,DCMS,EH,28/01/2015,The Team Brand Communication Consultants,0040090205,"30,420.00 ",Resources-IMT,WIP Computer Consultancy
171,DCMS,EH,28/01/2015,The Team Brand Communication Consultants,0040090206,"61,810.80 ",Resources-IMT,WIP Computer Consultancy
172,DCMS,EH,07/01/2015,University of York,0040086634,"25,000.00 ",Heritage Protection & Planning-Heritage Protection,Hist Environ Prog Projects Gra
173,DCMS,EH,07/01/2015,University of York,0040086634,"10,000.00 ",Heritage Protection & Planning-Heritage Protection,Hist Environ Prog Projects Gra
174,DCMS,EH,14/01/2015,Vinci Construction UK Ltd,0040088773,"97,867.20 ",National Collections-Capital Investment Programme,Works for Heritage Buildings
175,DCMS,EH,14/01/2015,Vinci Construction UK Ltd,0040088773,"53,281.20 ",National Collections-Capital Investment Programme,WIP Professional Works Advice
176,DCMS,EH,14/01/2015,Vinci Construction UK Ltd,0040088773,"5,890.80 ",National Collections-Capital Investment Programme,WIP Operational Building Works
177,DCMS,EH,14/01/2015,Vinci Construction UK Ltd,0040088773,"3,127.20 ",National Collections-Capital Investment Programme,WIP Operational Building Works
178,DCMS,EH,14/01/2015,Vinci Construction UK Ltd,0040088773,"39,681.60 ",National Collections-Capital Investment Programme,WIP Operational Building Works
179,DCMS,EH,14/01/2015,Vinci Construction UK Ltd,0040088773,"8,187.60 ",National Collections-Capital Investment Programme,WIP Operational Building Works
180,DCMS,EH,14/01/2015,W H Smith and R Ensor SAP Scheme,0040088893,"35,516.40 ",Resources-Office Estate,Rent - Operating Leases
181,DCMS,EH,12/01/2015,Whitby PCC,0082003519,"77,000.00 ",Heritage Protection & Planning-Nat. Planning & Conservation,GRANTS PAYABLE PLACES OF WORSHIP
182,DCMS,EH,19/01/2015,William Anelay Limited,0040089841,"23,408.35 ",Heritage Protection & Planning-Nat. Planning & Conservation,Fees for Professional Advice
183,DCMS,EH,19/01/2015,William Anelay Limited,0040089841,"3,664.80 ",Heritage Protection & Planning-Nat. Planning & Conservation,Fees for Professional Advice
184,DCMS,EH,19/01/2015,Wycliffe Congregational Church,0082003523,"27,412.00 ",Heritage Protection & Planning-Nat. Planning & Conservation,GRANTS PAYABLE PLACES OF WORSHIP
